Cogmind - Beta 16 @@@ ROGUE MODE // 2025.11.27 @ 19:48:51 Player: ZOT Result: Destroyed by G-34 Mercenary with Small Laser Performance ------------- Evolutions (1) 500 Regions Visited (3) 600 Robots Destroyed (32) 160 Value Destroyed (772) 772 Prototype IDs (2) 40 Alien Tech Used (0) 0 Bonus (25) 25 TOTAL SCORE: 2097 Bonus ------- Follower Combat Kills 25 Cogmind --------- Core Integrity 0/400 Matter 274/300 Energy 265/265 System Corruption 0% Temperature Cool (12) Movement Walking (120) Location -9/Materials Parts ------- > --- POWER (2) -------- Improved Ion Engine > --- PROPULSION (2) --- Aluminum Leg > --- UTILITY (3) ------ Heat Sink Weight Redist. System Visual Processing Unit > --- WEAPON (2) ------- Light Assault Rifle Light Assault Rifle > --- INVENTORY (5) ---- Experimental Sensor Array Small Laser Improved Assault Rifle Faulty Improved Assault Rifle Peak State ------------ > --- POWER ------------ Light Nuclear Core Light Nuclear Core > --- PROPULSION ------- Wheel Wheel > --- UTILITY ---------- Improved Heat Sink Visual Processing Unit Sensor Array > --- WEAPON ----------- Advanced Beam Rifle Assault Cannon > --- INVENTORY -------- Improved Hover Unit Weight Redist. System Experimental Sensor Array Particle Gun [Rating: 22] Favorites ----------- Power Light Nuclear Core Engine Light Ion Engine Power Core Light Nuclear Core Propulsion Wheel Leg Aluminum Leg Wheel Wheel Hover Unit Improved Hover Unit Utility Sensor Array Device Sensor Array Storage Small Storage Unit Processor Visual Processing Unit Weapon Particle Gun Energy Gun Particle Gun Ballistic Gun Assault Rifle Ballistic Cannon Assault Cannon Special Weapon Mining Laser Build | -11 -10 -10 -9 ------- Run | Yrd Mat Min Mat Slots Evolved 2 | . . . 2 Power 1 | . . . 1 Propulsion . | . . . . Utility 1 | . . . 1 Weapon . | . . . . Parts Attached 32 | 8 2 8 14 Power 7 | 1 . 3 3 Engine 5 | 1 . 1 3 Core 2 | . . 2 . Reactor . | . . . . Propulsion 9 | 4 . 2 3 Treads . | . . . . Leg 3 | 2 . . 1 Wheel 4 | 2 . 2 . Hover 2 | . . . 2 Flight . | . . . . Utility 7 | 1 1 1 4 Device 5 | . 1 1 3 Storage 1 | 1 . . . Processor 1 | . . . 1 Hackware . | . . . . Protection . | . . . . Artifact . | . . . . Weapon 9 | 2 1 2 4 Energy Gun 3 | . 1 1 1 Energy Cannon . | . . . . Ballistic Gun 4 | 2 . . 2 Ballistic Cannon 1 | . . . 1 Launcher . | . . . . Special Weapon 1 | . . 1 . Impact Weapon . | . . . . Slashing Weapon . | . . . . Piercing Weapon . | . . . . Special Melee Weapon . | . . . . Unidentified Prototypes . | . . . . Parts Lost 19 | . . 6 13 Power 5 | . . 1 4 Propulsion 6 | . . 2 4 Utility 2 | . . . 2 Weapon 6 | . . 3 3 Highest Loss Streak 7 | . . 4 7 To Critical Strikes 1 | . . . 1 Average Backups 4 | 2 5 6 3 Power . | . 1 1 . Propulsion 1 | 1 2 2 . Utility 1 | . . 2 1 Weapon . | . 1 . 1 Tool/Special . | . . . . Unused Backups 9 | . . 3 6 Power 3 | . . 2 1 Propulsion 1 | . . . 1 Utility 2 | . . 1 1 Weapon 3 | . . . 3 Tool/Special . | . . . . Average Slot Usage (%) 85 | . 88 92 76 Engine 5 | . 14 . 9 Core 8 | . . 12 6 Leg 1 | . . . 3 Wheel 19 | . 28 27 7 Hover 1 | . . . 2 Device 17 | . 2 21 17 Storage 4 | . 14 6 . Processor 4 | . . . 10 Energy Gun 8 | . 2 12 6 Ballistic Gun 8 | . 25 5 7 Ballistic Cannon 1 | . . . 3 Special Weapon 2 | . . 4 1 Peak Build Rating 22 | 6 7 13 22 Average Rating 11 | 3 6 11 13 On Entrance 6 | . 6 7 13 Avg Prop Armor Cover (%) 12 | 25 . . 6 Naked Turns . | . . . . Heaviest Build 18 | 12 13 16 18 Greatest Support 26 | 26 26 26 20 Greatest Overweight (x) 4 | . . . 4 Average Overweight (x) . | . . . . Largest Inventory Capacity 8 | 8 8 8 5 Average Capacity 6 | 6 8 6 5 Most Carried 8 | 6 8 8 5 Average Carried 4 | 3 5 6 3 Final Capacity 8 | 8 8 8 5 Final Carried 7 | 4 7 7 4 Class Distribution -------------------- 67% | Scavenger-Mutant 32% | Mutant Dominant Class ---------------- Mutant | -10/Materials Scavenger-Mutant | -10/Mines Scavenger-Mutant | -9/Materials Resources | -11 -10 -10 -9 ----------- Run | Yrd Mat Min Mat Matter Collected 860 | 187 74 310 289 Remotely . | . . . . Salvage Created 894 | . 131 184 579 Parts 58 | . 10 10 38 Haulers Intercepted . | . . . . Recyclers Shooed . | . . . . Parts Field Recycled . | . . . . Retrieved Matter . | . . . . Parts Self-Destructed . | . . . . Prevented . | . . . . Parts Restored . | . . . . Kills | -11 -10 -10 -9 ------- Run | Yrd Mat Min Mat Combat Hostiles Destroyed 27 | . 2 6 19 Guns 19 | . 2 6 11 Cannons 8 | . . . 8 Classes Destroyed 5 | . 3 1 1 Worker 3 | . 1 . 2 Watcher 2 | . 1 . 1 Swarmer 11 | . . 3 8 Grunt 12 | . 2 3 7 Sentry 4 | . . . 4 Best Kill Streak 5 | . 2 4 5 Combat Bots Only 5 | . 1 4 5 Max Kills in Single Turn 1 | . 1 1 1 Gunslinging . | . . . . Exploded . | . . . . Melee . | . . . . Uniques/NPCs Destroyed . | . . . . Combat | -11 -10 -10 -9 -------- Run | Yrd Mat Min Mat Hostile Shots Fired 231 | . 11 63 157 Missed 59 | . 4 13 42 Hits 172 | . 7 50 115 Projectile 172 | . 7 50 115 Critical Strikes 1 | . . . 1 Damage Taken 1866 | . 108 558 1200 Core 550 | . 10 129 411 Absorbed by Shields . | . . . . Regen/Repaired (Parts) 2 | . . . 2 Core Remaining (%) 72 | 100 . 44 . Volleys Fired 142 | . 17 31 94 Largest 2 | . 2 2 2 Hottest 85 | . 40 85 65 Shots Fired 179 | . 29 36 114 Gun 143 | . 29 36 78 Cannon 36 | . . . 36 Launcher . | . . . . Special . | . . . . Kinetic 124 | . 24 24 76 Thermal 48 | . . 10 38 Explosive . | . . . . Electromagnetic 7 | . 5 2 . Robot Hit Streak 13 | . 5 5 13 Robot Miss Streak 5 | . 2 2 5 Penetration Max . | . . . . Secondary Targets 2 | . . . 2 Max Gunslinging Chain 1 | . . . 1 Shots Hit Robots 113 | . 18 22 73 Core Hits 48 | . 8 8 32 Critical Kills . | . . . . Critical Parts Destroyed . | . . . . Critical Strikes 4 | . . . 4 Burn 1 | . . . 1 Blast 3 | . . . 3 Melee Attacks . | . . . . Impact . | . . . . Slashing . | . . . . Piercing . | . . . . Sneak Attacks . | . . . . Combat Hostiles . | . . . . Follow-up Attacks . | . . . . Damage Inflicted 1698 | . 230 305 1163 Guns 1190 | . 230 305 655 Cannons 508 | . . . 508 Explosions . | . . . . Melee . | . . . . Ramming . | . . . . Kinetic 1128 | . 187 211 730 Thermal 527 | . . 94 433 Explosive . | . . . . Electromagnetic 43 | . 43 . . Impact . | . . . . Slashing . | . . . . Piercing . | . . . . Highest Corruption 1 | . 1 1 . Average Corruption 1 | . 1 1 . Corruption Purged . | . . . . Corruption Blocked . | . . . . Effects 6 | . 2 4 . Matter Fused 2 | . 1 1 . Energy Discharges 1 | . . 1 . Data Loss (minor) 1 | . 1 . . Misfires 1 | . . 1 . Weapon Failures 1 | . . 1 . Overload Shots . | . . . . Overflow Damage . | . . . . Projectiles . | . . . . Explosions . | . . . . Melee . | . . . . Knockbacks 1 | . . . 1 Impact . | . . . . Kinetic 1 | . . . 1 Secondary . | . . . . Self-Inflicted Damage . | . . . . Shots . | . . . . Rammed . | . . . . Targets Rammed . | . . . . Kicked . | . . . . Crushed . | . . . . Highest Temperature 565 | . 2 237 565 Average Temperature 230 | . 2 100 288 Received Heat Transfer 615 | . 54 210 351 Effects 12 | . . . 12 Shutdowns 4 | . . . 4 Energy Bleed 1 | . . . 1 Interference 2 | . . . 2 Short Circuit 1 | . . . 1 Damage (minor) 4 | . . . 4 Siege Activations . | . . . . Martial Activations . | . . . . Shielding Activations . | . . . . Robots Disrupted . | . . . . Combat Hostiles . | . . . . Robots Corrupted . | . . . . Combat Hostiles . | . . . . Parts Fried . | . . . . Impact Corruptions . | . . . . Robots Melted . | . . . . Combat Hostiles . | . . . . Parts Melted 5 | . . 2 3 Heat Transferred 1332 | . . 222 1110 Parts Sabotaged . | . . . . Parts Stolen . | . . . . Parts Stripped . | . . . . Power Chain Reactions . | . . . . Alert | -11 -10 -10 -9 ------- Run | Yrd Mat Min Mat Maximum Alert Level 1 | . . . 1 Low Security (%) 97 | 100 100 100 93 Level 1 2 | . . . 6 Level 2 . | . . . . Level 3 . | . . . . Level 4 . | . . . . Level 5 . | . . . . High Security . | . . . . Max Security . | . . . . Peak Influence 212 | . 76 100 212 Initial 17 | . . 17 . Average 52 | . 29 19 107 Influence Increases 868 | . 103 217 548 Destroy 0b10 Robot/C 560 | . 40 140 380 Destroy 0b10 Robot/NC 25 | . 10 . 15 Destroy Leader 134 | . 12 30 92 Allied During Kill 2 | . . 2 . Successful Hack 24 | . 11 . 13 Destroy Structure 3 | . . . 3 Lose Combat Pursuer 120 | . 30 45 45 Influence Decreases 692 | . 57 263 372 Entered New Map 29 | . . 29 . Time Decay 466 | . 57 167 242 Lost Part 157 | . . 27 130 Lost Ally 40 | . . 40 . Squads Dispatched 5 | . 2 . 3 Investigation 3 | . 1 . 2 Extermination . | . . . . Reinforcement 2 | . 1 . 1 Assault . | . . . . Garrison . | . . . . Intercept . | . . . . Searches Triggered . | . . . . Construction Impeded . | . . . . Haulers Reinforced . | . . . . Active Scanning Responses . | . . . . Cargo Convoy Interrupts . | . . . . Stealth | -11 -10 -10 -9 --------- Run | Yrd Mat Min Mat Distress Signals 4 | . 2 . 2 Communications Jammed . | . . . . Distress Signals . | . . . . Times Spotted 48 | . 6 9 33 Peak Tracking Total 8 | . 4 5 8 Tactical Retreats 6 | . 1 3 2 Traps | -11 -10 -10 -9 ------- Run | Yrd Mat Min Mat Traps Triggered 2 | . 1 . 1 Indirectly . | . . . . Trap Hack Attempts . | . . . . Triggered . | . . . . Disarmed . | . . . . Reprogrammed . | . . . . Reused . | . . . . Traps Extracted . | . . . . Installed . | . . . . Triggered . | . . . . Machines | -11 -10 -10 -9 ---------- Run | Yrd Mat Min Mat Machines Disabled . | . . . . Max in Single Turn . | . . . . Machines Repaired . | . . . . Machines Dismantled . | . . . . Machines Sabotaged . | . . . . Overloaded Fab Kills . | . . . . Hacking | -11 -10 -10 -9 --------- Run | Yrd Mat Min Mat Machines Accessed 5 | . 1 . 4 Terminals 4 | . 1 . 3 Fabricators . | . . . . Repair Stations 1 | . . . 1 Recycling Units . | . . . . Scanalyzers . | . . . . Garrison Access . | . . . . Total Hacks 17 | . 4 . 13 Successful 11 | . 4 . 7 Failed 6 | . . . 6 Catastrophic 1 | . . . 1 Database Lockouts . | . . . . Manual 9 | . 3 . 6 Terminals 15 | . 4 . 11 Fabricators . | . . . . Repair Stations 2 | . . . 2 Recycling Units . | . . . . Scanalyzers . | . . . . Garrison Access . | . . . . Terminal Hacks 7 | . 3 . 4 Record 4 | . 2 . 2 Prototype ID Bank 1 | . . . 1 Branch Access Points 1 | . . . 1 Zone Layout 1 | . 1 . . Fabricator Hacks . | . . . . Repair Station Hacks 2 | . . . 2 Scan Component 1 | . . . 1 Repair 1 | . . . 1 Recycling Unit Hacks . | . . . . Scanalyzer . | . . . . Garrison Access Hacks . | . . . . Unauthorized Hacks 2 | . 1 . 1 Terminals 2 | . 1 . 1 Assimilate 2 | . 1 . 1 Fabricators . | . . . . Repair Stations . | . . . . Recycling Units . | . . . . Scanalyzers . | . . . . Garrison Access . | . . . . Data Cores Recovered . | . . . . Used . | . . . . Hacking Detections 4 | . 1 . 3 Full Trace Events 2 | . 1 . 1 Feedback Events . | . . . . Feedback Blocked . | . . . . Robot Schematics Acquired . | . . . . Robots Built . | . . . . Authchips . | . . . . Time . | . . . . Total Robot Build Rating . | . . . . Part Schematics Acquired . | . . . . Parts Built . | . . . . Authchips . | . . . . Time . | . . . . Total Part Build Rating . | . . . . Part Studies Acquired . | . . . . Parts Repaired 1 | . . . 1 Time 26 | . . . 26 Parts Recycled . | . . . . Recycled Matter . | . . . . Retrieved Matter . | . . . . Retrieved Components . | . . . . Parts Scanalyzed . | . . . . Part Schematics Acquired . | . . . . Parts Damaged . | . . . . Bothacking | -11 -10 -10 -9 ------------ Run | Yrd Mat Min Mat Used RIF Installer . | . . . . Robots Hacked . | . . . . Non-combat . | . . . . Combat . | . . . . Robot Hacks Applied . | . . . . Relay Couplers Released . | . . . . Fabnet Peak Effective % . | . . . . Robots Rewired . | . . . . Allies Hacked . | . . . . Hacks Repelled . | . . . . Allies | -11 -10 -10 -9 -------- Run | Yrd Mat Min Mat Total Allies 3 | . . 3 . Largest Group 2 | . . 2 1 Highest-Rated Group 47 | . . 47 31 Highest-Rated Ally 31 | . . 31 31 Total Orders . | . . . . Ally Attacks 8 | . . 8 . Total Damage 105 | . . 105 . Kills 1 | . . 1 . Allies Corrupted . | . . . . Allies Melted . | . . . . Intel | -11 -10 -10 -9 ------- Run | Yrd Mat Min Mat Active Infowar (turns) 1203 | . 32 732 439 Optics 431 | . . . 431 Sensors 937 | . 32 732 173 Robot Analysis Total . | . . . . Derelict Logs Recovered 1 | . . 1 . Drone Launches . | . . . . Drone Recoveries . | . . . . Exploration | -11 -10 -10 -9 ------------- Run | Yrd Mat Min Mat Turns Passed 1529 | 52 178 732 567 Spaces Moved 1112 | 33 129 665 285 Core 69 | 2 . . 67 Treads . | . . . . Legs 47 | . . . 47 Wheels 964 | 31 129 665 139 Hover 32 | . . . 32 Flight . | . . . . Fastest Speed 50 | 50 90 80 50 Average Speed 84 | 88 90 80 92 Slowest Speed 250 | 100 90 100 250 Overloaded Moves . | . . . . Propulsion Burnouts . | . . . . Robots Hopped . | . . . . Potential Cave-ins . | . . . . Cave-ins Triggered . | . . . . Exploration Rate (%) 39 | 4 27 91 34 Regions Visited 3 Branch Regions 1 Pre-discovered Areas . | . . . . Known Exits Taken . | . . . . Unknown Exits Taken 3 | 1 1 1 . Scrap Searched 1 | . . 1 . Spaces Dug . | . . . . Terrain Destroyed 3 | . . . 3 Melee . | . . . . Projectile 3 | . . . 3 AOE . | . . . . Terrain Rammed . | . . . . Walls Destroyed . | . . . . Machines Disabled . | . . . . Actions | -11 -10 -10 -9 --------- Run | Yrd Mat Min Mat Total 1528 | 53 160 830 485 Wait 186 | . 7 112 67 Move 1109 | 32 128 664 285 Hop . | . . . . Pick Up 38 | 9 4 8 17 Fast Attach 3 | 1 . 1 1 Attach 25 | 6 1 5 13 Detach 2 | 1 . . 1 Swap 12 | 4 3 3 2 Drop 11 | . . 6 5 Fire 142 | . 17 31 94 Melee . | . . . . Ram . | . . . . Kick . | . . . . Crush . | . . . . Escape Stasis . | . . . . Rewire . | . . . . Trap . | . . . . Miscellaneous . | . . . . Route ------- -11/Scrapyard -10/Materials (discovered 2 exits: [*Min x2]) -10/Mines -9/Materials (discovered 4 exits: Mat / *Min x2 / Sto) History --------- Turn | Location | Event 11 | -11/Scrapyard | Discovered new exit (range 16) 53 | -11/Scrapyard | Entered Materials 54 | -10/Materials | Met a group of wandering Federalists 96 | -10/Materials | Discovered new exit (range 10) 146 | -10/Materials | Lost 3 allies 153 | -10/Materials | Discovered new exit (range 14) 231 | -10/Materials | Entered Mines 289 | -10/Mines | Lost 4 parts (1p1n2w) 342 | -10/Mines | Found a damaged Exp. Sensor Array with a note attached 343 | -10/Mines | Found Prototype Device 502 | -10/Mines | Core integrity fell below 50% 600 | -10/Mines | Build established: Scavenger-Mutant 616 | -10/Mines | Learned 2 Materials zone layouts 708 | -10/Mines | Received a Mining Laser from a helpful Derelict 944 | -10/Mines | Discovered new exit (range 14) 963 | -10/Mines | Entered Materials 963 | -9/Materials | Accompanied by 1 ally 963 | -9/Materials | Evolved 2 slots: Power x1, Utility x1 964 | -9/Materials | Identified exit to Materials 1079 | -9/Materials | Identified exit to Mines 1079 | -9/Materials | Identified exit to Storage 1196 | -9/Materials | Core integrity fell below 50% 1224 | -9/Materials | Lost 7 parts (2p2n2u1w) 1280 | -9/Materials | Core integrity fell below 20% 1327 | -9/Materials | Lost 3 parts (1p1n1w) 1521 | -9/Materials | Repaired Flight Unit 1530 | -9/Materials | Destroyed by G-34 Mercenary with Small Laser Last Messages --------------- 01485_ K-01 Serf collects debris. 01486_ R-06 Scavenger collects Heat Sink. 01487_ Dropped Particle Gun. 01488_ Acquired Prototype Ballistic Gun. 01488_ K-01 Serf collects debris. 01495_ Connecting with Repair Station... >>Scan(Flight Unit) Scanning Flight Unit... Ready to Repair: Flight Unit Rating: 1 Time: 26 >>Repair Repairing Flight Unit... ETC: 26 01495_ K-01 Serf collects debris. 01520_ Hover Unit destroyed. 01521_ Repair station completes Flight Unit repairs. 01524_ Lgt. Ion Engine destroyed. Map ----- +----------------------------------------------------+ | | | | | ????????????????????????????????????????????? | | ????????????????????????????????????????????? | | ????????????????????????????????????????????? | | ????????????????????????????????????????????? | | ????????????????????????????????????????????? | | ????????????????????????????????????????????? | | ????????????????????????????????????????????? | | ????????????????????????????????????????????? | | ?????????????????###????????????????????????? | | ########?????????#""????????????????????????? | | #???????###"T????????????????????????? | | """"" #???????# ???????????"#???????????? | | """"" #???????# """?????????? ""#??????????? | | """"" #???????# """?????????? #??????????? | | """"" #???????# """?????????> #??????????? | | """"" #######?# ???????? #??????????? | | """"" # #?# ???????? #??????????? | | """"" # #?# ???????? #???????????? | | # #?# ???????? #####????????? | | ######## #?#####+####### # ?????????? | | ???????# ##### ^ + ???????????? | | ???????# + #????????????? | | ???????# ##### u """ #????????????? | | ???????# #???#^ ^ @=R" #????????????? | | ???????# #???#^ """o #????????????? | | ????????? ????# """ ######???????? | | ????????? ?????# """ ^ +???????? | | ????????? ??????# """gg![ ###???????? | | ??????###+######## "" [ [ #?????????? | | ####### ###???????? | | %!= ! #???????? | | #######% % %* t/???????? | | ???#####+##########+## !% # ??????? | | ???# ## % % ######## ##### #???????? | | ???# """ """ ##! #??????? #???? #???????? | | ???# """ """*##! """ #??????? #?????????????? | | ???# """ """ ## """ #??????? ?????????????? | | ???# ## """ +??????? ?????????????? | | ???# ##! #???????? #????????????? | | ???# #########????????##????????????? | | ???# #??????????????????????????????? | | ???###########??????????????????????????????? | | ????????????????????????????????????????????? | | ????????????????????????????????????????????? | | ????????????????????????????????????????????? | | ????????????????????????????????????????????? | | ????????????????????????????????????????????? | | ????????????????????????????????????????????? | +----------------------------------------------------+ Best States ------------- Heat Dissipation 42 Energy Generation 23 Energy Capacity 290 Matter Stores 300 Matter Capacity 300 Sight Range 18 Robot Scan Range 14 Terrain Scan Density 10 Additional Mass Support 6 Evasion (%) 53 Item Schematics ----------------- None Robot Schematics ------------------ None Fabricated ------------ Nothing Repaired ---------- Flight Unit | 90% | -9/Materials Studied --------- None Alien Tech Used ----------------- None Achievements -------------- Well Done Challenges ------------ None Game ------ Seed MassBladeHumpback Manual? 0 Play Time 00:50:47 Cumulative 101.4 hours Start 2025.11.27 @ 12:04:08 End 2025.11.27 @ 19:48:51 Sessions 3 Manual Loads 0 Difficulty Rogue Special Mode None Game No. 121 Rogue 121 Adventurer 0 Explorer 0 Win Type - Total 0 Types 0/0/0/0/0/0/0/0/0/0 Lore% 18 Gallery% 37 Achievement% 18 Wizard Run 0 Options --------- Layout 1 ASCII 0 Keyboard 0 Movement Mouse Keybinds 0 Fullscreen 1 Font 32/SmallcapsGlow Map View 50x35 Zoom Use 0% Tactical HUD 1 Map Filters NONE Filters NONE Steam 1 RUN: 6dd446fc-5a3d-4d1d-9253-163fe24f8182